bitfinex-derivatives/quotes_BTCF0:USTF0_20250709
["timestamp","ask_amount","ask_price","bid_price","bid_amount"]
[1752104517558,1.61799795,111470.0,111460.0,0.49982646]
[1752104517764,1.61799795,111470.0,111460.0,0.50082646]
[1752104518656,1.61799795,111470.0,111460.0,0.49982646]
[1752104518857,1.61799795,111470.0,111460.0,0.2608078]
[1752104518858,1.37997929,111470.0,111460.0,0.2608078]
[1752104519257,1.38097929,111470.0,111460.0,0.2608078]
[1752104523571,1.38097929,111470.0,111460.0,0.2112678]
[1752104523772,0.1793739,111460.0,111450.0,0.55765236]
[1752104523968,0.94237474,111460.0,111450.0,0.0988904]
[1752104524174,0.73454538,111460.0,111450.0,0.0988904]
[1752104524370,0.17939,111450.0,111440.0,0.00179461]
[1752104524566,0.87744924,111450.0,111440.0,0.08363461]
[1752104524866,0.85477924,111450.0,111440.0,0.08363461]
[1752104525071,1.31890148,111450.0,111440.0,0.08363461]
[1752104525474,1.31890148,111450.0,111440.0,0.08663461]
[1752104525669,1.20024924,111450.0,111440.0,0.08663461]
[1752104526272,1.28118932,111450.0,111440.0,0.08663461]
[1752104526572,1.20053708,111450.0,111440.0,0.08663461]
[1752104527074,1.20953246,111450.0,111440.0,0.08663461]
[1752104527775,1.57033246,111450.0,111440.0,0.08863461]
[1752104527970,1.6509847,111450.0,111440.0,0.08863461]
[1752104528375,1.6509847,111450.0,111440.0,0.09957925]
[1752104528765,1.6735447,111450.0,111440.0,0.09957925]
[1752104528962,1.94457406,111450.0,111440.0,0.05053925]
[1752104529170,2.00258407,111450.0,111440.0,0.05053925]
[1752104529568,2.00258407,111450.0,111440.0,0.01777528]
[1752104529763,2.00258407,111450.0,111440.0,0.00679461]
[1752104533279,0.1794061,111440.0,111430.0,0.10179477]
[1752104533480,1.00521589,111440.0,111430.0,0.11288034]
[1752104533677,1.00521589,111440.0,111430.0,0.10179477]
[1752104534378,0.92480254,111440.0,111430.0,0.10479477]
[1752104534579,0.92480254,111440.0,111430.0,0.10879477]
[1752104535178,1.40901543,111440.0,111430.0,0.31571269]
[1752104535481,1.20055318,111440.0,111430.0,0.60803633]
[1752104535980,1.28091338,111440.0,111430.0,0.36890697]
[1752104536182,1.20055318,111440.0,111430.0,0.60803633]
[1752104536382,1.30821543,111440.0,111430.0,0.60803633]
[1752104536681,1.30821543,111440.0,111430.0,0.36890697]
[1752104536987,1.30821543,111440.0,111430.0,0.60803633]
[1752104537879,1.28089017,111440.0,111430.0,0.36890697]
[1752104538079,0.66525017,111440.0,111430.0,0.36890697]
[1752104538283,1.29723017,111440.0,111430.0,0.36890697]
[1752104539083,1.21689318,111440.0,111430.0,0.60803633]
[1752104540081,1.32455543,111440.0,111430.0,0.36890697]
[1752104540286,1.32455543,111440.0,111430.0,0.60803633]
[1752104540488,1.32455543,111440.0,111430.0,0.63244633]
[1752104540694,1.2972223,111440.0,111430.0,0.64343773]
[1752104540889,1.2972223,111440.0,111430.0,0.66018665]
[1752104541183,0.9364223,111440.0,111430.0,0.66018665]
[1752104541489,1.2972223,111440.0,111430.0,0.66018665]
[1752104543382,1.2972223,111440.0,111430.0,0.63577665]
[1752104543581,1.21689318,111440.0,111430.0,0.63577665]
[1752104543887,1.21689318,111440.0,111430.0,0.39664729]
[1752104544693,1.21689318,111440.0,111430.0,0.410528]
[1752104544989,1.21689318,111440.0,111430.0,0.64965736]
[1752104545290,1.20059318,111440.0,111430.0,0.67406736]
[1752104547391,0.83979318,111440.0,111430.0,0.67406736]
[1752104547984,0.85609318,111440.0,111430.0,0.67406736]
[1752104548593,0.83979318,111440.0,111430.0,0.63326736]
[1752104548785,0.83979318,111440.0,111430.0,0.67406736]
[1752104549292,0.9364223,111440.0,111430.0,0.67406736]
[1752104550292,0.85609318,111440.0,111430.0,0.67406736]
[1752104550690,0.96375543,111440.0,111430.0,0.67406736]
[1752104550893,0.34807543,111440.0,111430.0,0.67406736]
[1752104551188,0.96371543,111440.0,111430.0,0.67406736]
[1752104551493,0.96371543,111440.0,111430.0,1.03486736]
[1752104551888,0.96371543,111440.0,111430.0,0.67406736]
[1752104552495,0.96371543,111440.0,111430.0,1.03486736]
[1752104552902,0.85605318,111440.0,111430.0,1.03486736]
[1752104553394,0.96371543,111440.0,111430.0,1.03486736]
[1752104556095,0.85605318,111440.0,111430.0,1.03486736]
[1752104556299,0.24041318,111440.0,111430.0,1.03478125]
[1752104556494,0.85601318,111440.0,111430.0,1.03478125]
[1752104557396,0.96367543,111440.0,111430.0,1.03478125]
[1752104557595,0.15236933,111440.0,111430.0,1.03478125]
[1752104557790,0.83971318,111440.0,111430.0,1.03478125]
[1752104558298,0.94737543,111440.0,111430.0,1.03478125]
[1752104558794,0.96291543,111440.0,111430.0,1.03478125]
[1752104560194,0.96291543,111440.0,111430.0,1.02386961]
[1752104560402,0.96291543,111440.0,111430.0,1.03477021]
[1752104561597,0.04470708,111440.0,111430.0,1.03477021]
[1752104561802,0.69620076,111440.0,111430.0,1.03477021]
[1752104561998,0.74090784,111440.0,111430.0,1.03477021]
[1752104562200,0.74090784,111440.0,111430.0,1.02082724]
[1752104562903,0.12534784,111440.0,111430.0,1.52030724]
[1752104563104,0.04470708,111440.0,111430.0,1.20030724]
[1752104563401,0.69620076,111450.0,111440.0,0.1794061]
[1752104563402,0.92134808,111450.0,111440.0,0.1794061]
[1752104563600,0.92134808,111450.0,111440.0,0.50923745]
[1752104563803,0.92134808,111450.0,111440.0,0.53211745]
[1752104564002,0.92134808,111450.0,111440.0,0.89291745]
[1752104564397,0.92134808,111450.0,111440.0,0.89287278]
[1752104564603,0.74195808,111450.0,111440.0,0.89387278]
[1752104565103,0.92134808,111450.0,111440.0,0.89486657]
[1752104565502,0.93688808,111450.0,111440.0,0.89486657]
[1752104565803,0.74195808,111450.0,111440.0,0.89486657]
[1752104566000,0.66127732,111450.0,111440.0,0.89486657]
[1752104566206,0.61552,111450.0,111440.0,0.89486657]
[1752104566408,0.79491,111450.0,111440.0,0.89486657]
[1752104567301,0.79491,111450.0,111440.0,0.53406657]
[1752104567606,0.81045,111450.0,111440.0,0.53406657]
[1752104567801,0.79491,111450.0,111440.0,0.89486657]
[1752104568101,0.81045,111450.0,111440.0,0.89486657]
[1752104569013,0.85618539,111450.0,111440.0,0.89486657]
[1752104570806,0.67679539,111450.0,111440.0,0.89486657]
[1752104571011,0.67679539,111450.0,111440.0,0.89482661]
[1752104571307,0.85618539,111450.0,111440.0,0.89482661]
[1752104571504,0.85614539,111450.0,111440.0,0.89482661]
[1752104571706,0.24066539,111450.0,111440.0,0.89482661]
[1752104572007,0.85614539,111450.0,111440.0,0.89482661]
[1752104575707,0.88944539,111450.0,111440.0,0.89482661]
[1752104575909,0.88944539,111450.0,111440.0,0.53402661]
[1752104576112,0.88944539,111450.0,111440.0,0.47874661]
[1752104576308,0.94595539,111450.0,111440.0,0.47874661]
[1752104576609,0.94595539,111450.0,111440.0,0.44634661]
[1752104576906,0.94595539,111450.0,111440.0,0.44641357]
[1752104577211,1.26566819,111450.0,111440.0,0.01280811]
[1752104577404,1.38733883,111450.0,111440.0,0.19221421]
[1752104577609,1.38733883,111450.0,111440.0,0.20618854]
[1752104577811,1.34160344,111450.0,111440.0,0.20618854]
[1752104578012,1.38731433,111450.0,111440.0,0.20618854]
[1752104578207,1.02651433,111450.0,111440.0,0.02678244]
[1752104578412,1.38731433,111450.0,111440.0,0.02678244]
[1752104578614,1.62644369,111450.0,111440.0,0.02678244]
[1752104579306,1.30673089,111450.0,111440.0,0.02678244]
[1752104579609,1.54586025,111450.0,111440.0,0.02678244]
[1752104580510,1.30673089,111450.0,111440.0,0.02678244]
[1752104580699,1.41417547,111450.0,111440.0,0.02678244]
[1752104581810,1.38731025,111450.0,111440.0,0.02678244]
[1752104584413,1.38731025,111450.0,111440.0,0.20618854]
[1752104584615,1.38731025,111450.0,111440.0,0.4453179]
[1752104585214,1.38731025,111450.0,111440.0,0.44536819]
[1752104585412,1.33076025,111450.0,111440.0,0.46043819]
[1752104585812,1.36326025,111450.0,111440.0,0.44536819]
[1752104586115,1.38727025,111450.0,111440.0,0.46043819]
[1752104586309,1.38727025,111450.0,111440.0,0.20623883]
[1752104588014,1.38727025,111450.0,111440.0,0.20634574]
[1752104588215,1.38727025,111450.0,111440.0,0.02693964]
[1752104588410,1.62639961,111450.0,111440.0,0.02693964]
[1752104589518,1.62639961,111450.0,111440.0,0.20634574]
[1752104589912,1.62639961,111450.0,111440.0,0.02693964]
[1752104590315,1.62639961,111450.0,111440.0,0.20634574]
[1752104590517,1.62639961,111450.0,111440.0,0.02693964]
[1752104590818,1.62639961,111450.0,111440.0,0.20634574]
[1752104591015,1.62639961,111450.0,111440.0,0.1923212]
[1752104591318,1.62639961,111450.0,111440.0,0.2063319]
[1752104594525,1.26559961,111450.0,111440.0,0.2063319]
[1752104594827,1.62639961,111450.0,111440.0,0.2063319]
[1752104595523,1.62639961,111450.0,111440.0,0.0269258]
[1752104595719,1.54582025,111450.0,111440.0,0.2063319]
[1752104596720,1.3872803,111450.0,111440.0,0.2063319]
[1752104596923,1.62640966,111450.0,111440.0,0.2063319]
[1752104597719,1.3872803,111450.0,111440.0,0.2063319]
[1752104597926,0.7718403,111450.0,111440.0,0.44546126]
[1752104598223,1.3872803,111450.0,111440.0,0.46084126]
[1752104598927,1.3872803,111450.0,111440.0,0.49294126]
[1752104600426,0.7718403,111450.0,111440.0,0.47756126]
[1752104600618,1.3872803,111450.0,111440.0,0.2384319]
[1752104600814,1.3872803,111450.0,111440.0,0.47756126]
[1752104601826,1.3872803,111450.0,111440.0,0.2384319]
[1752104602923,1.3872803,111450.0,111440.0,0.22753048]
[1752104603128,1.3872803,111450.0,111440.0,0.23844513]
[1752104605326,1.41413547,111450.0,111440.0,0.23844513]
[1752104605923,1.41413547,111450.0,111440.0,0.22443014]
[1752104606131,1.41413547,111450.0,111440.0,0.23845462]
[1752104606729,1.65326483,111450.0,111440.0,0.23845462]
[1752104606924,1.54582025,111450.0,111440.0,0.23845462]
[1752104607126,1.65345797,111450.0,111440.0,0.05904852]
[1752104607428,1.54582025,111450.0,111440.0,0.02694852]
[1752104609030,1.65347833,111450.0,111440.0,0.0269487]
[1752104609226,1.89260769,111450.0,111440.0,0.0269487]
[1752104609423,1.65347833,111450.0,111440.0,0.0269487]
[1752104609923,1.68012598,111450.0,111440.0,0.0269487]
[1752104610224,0.179406,111440.0,111430.0,0.15164369]
[1752104610424,0.7967975,111440.0,111430.0,0.34509097]
[1752104610730,0.4359975,111440.0,111430.0,0.37509097]
[1752104610930,0.4029975,111440.0,111430.0,0.37509097]
[1752104611126,0.97968971,111440.0,111430.0,0.62960033]
[1752104611322,1.01830971,111440.0,111430.0,0.39347097]
[1752104611527,1.37910971,111440.0,111430.0,0.39347097]
[1752104612434,1.37910971,111440.0,111430.0,0.39547097]
[1752104613129,1.37910971,111440.0,111430.0,0.63460033]
[1752104613722,1.37910971,111440.0,111430.0,0.39547097]
[1752104614436,1.61823907,111440.0,111430.0,0.39547097]
[1752104614935,1.37910971,111440.0,111430.0,0.39547097]
[1752104619753,1.2714491,111440.0,111430.0,0.39547097]
[1752104620346,1.2714491,111440.0,111430.0,0.31699097]
[1752104620551,1.51057846,111440.0,111430.0,0.12081995]
[1752104620752,1.64893907,111440.0,111430.0,0.12081995]
[1752104621652,1.54127846,111440.0,111430.0,0.12081995]
[1752104621850,1.67558419,111440.0,111430.0,0.12081995]
[1752104622250,1.67558419,111440.0,111430.0,0.13181134]
[1752104622442,1.67558419,111440.0,111430.0,0.10679477]
[1752104622642,1.67558419,111440.0,111430.0,0.13181114]
[1752104623145,1.78314119,111440.0,111430.0,0.13181114]
[1752104623344,1.64883546,111440.0,111430.0,0.13181114]
[1752104624456,1.6487924,111440.0,111430.0,0.13181114]
[1752104626860,1.6487924,111440.0,111430.0,0.11778494]
[1752104627158,1.6487924,111440.0,111430.0,0.13181158]
[1752104627954,1.5412354,111440.0,111430.0,0.11778494]
[1752104629463,1.67554113,111440.0,111430.0,0.11778494]
[1752104630550,1.78304393,111440.0,111430.0,0.11778494]
[1752104630860,1.6487382,111440.0,111430.0,0.11778494]
[1752104631255,1.77040884,111440.0,111430.0,0.11778494]
[1752104631454,2.0095382,111440.0,111430.0,0.11778494]
[1752104635660,1.9020354,111440.0,111430.0,0.13181141]
[1752104637869,1.9020354,111440.0,111430.0,0.11778494]
[1752104638763,2.14145016,111440.0,111430.0,0.11778494]
[1752104638967,1.66290604,111440.0,111430.0,0.11778494]
[1752104639169,2.14145016,111440.0,111430.0,0.11781059]
[1752104641261,2.14145016,111440.0,111430.0,0.35708265]
[1752104641568,1.9021781,111440.0,111430.0,0.35708265]
[1752104641772,2.11075016,111440.0,111430.0,0.41808265]
[1752104642269,2.24505589,111440.0,111430.0,0.41808265]
[1752104642866,1.76651177,111440.0,111430.0,0.41808265]
[1752104643071,2.00578383,111440.0,111430.0,0.41808265]
[1752104644070,2.00578383,111440.0,111430.0,0.41804974]
[1752104644673,2.02468296,111440.0,111430.0,0.17877768]
[1752104647666,2.26395502,111440.0,111430.0,0.17877768]
[1752104647861,1.0997909,111440.0,111430.0,0.61258184]
[1752104648179,1.68845703,111440.0,111430.0,0.63660184]
[1752104648470,0.85928517,111440.0,111430.0,1.0553539]
[1752104648672,0.93992443,111440.0,111430.0,1.3053539]
[1752104648973,0.93992443,111440.0,111430.0,1.06596653]
[1752104649281,0.93992443,111440.0,111430.0,0.81596653]
[1752104649975,0.32456443,111440.0,111430.0,0.81596653]
[1752104650174,0.93992443,111440.0,111430.0,0.81596653]
[1752104651676,0.93992443,111440.0,111430.0,0.63772653]
[1752104651980,0.32456443,111440.0,111430.0,0.63772653]
[1752104652275,0.93992443,111440.0,111430.0,0.63772653]
[1752104653774,0.32456443,111440.0,111430.0,0.63772653]
[1752104653981,0.93988443,111440.0,111430.0,0.63772653]
[1752104654875,0.93988443,111440.0,111430.0,0.62674362]
[1752104655382,0.95593443,111440.0,111430.0,0.62674362]
[1752104655978,0.93988443,111440.0,111430.0,0.62674362]
[1752104656172,0.95593443,111440.0,111430.0,0.62674362]
[1752104656678,0.93988443,111440.0,111430.0,0.62674362]
[1752104656880,0.93848713,111440.0,111430.0,0.62674362]
[1752104657084,0.95453713,111440.0,111430.0,0.62674362]
[1752104657879,0.95453713,111440.0,111430.0,0.38758687]
[1752104658276,0.95453713,111440.0,111430.0,0.62674362]
[1752104661781,0.95453713,111440.0,111430.0,0.38758687]
[1752104661980,0.95453713,111440.0,111430.0,0.62674362]
[1752104665384,0.95453713,111440.0,111430.0,0.65153883]
[1752104670788,0.95453713,111440.0,111430.0,0.65157929]
[1752104671088,0.95453713,111440.0,111430.0,0.41238208]
[1752104671389,0.95453713,111440.0,111430.0,0.65157929]
[1752104675803,0.87385787,111440.0,111430.0,0.65157929]
[1752104676684,0.87385787,111440.0,111430.0,0.65158985]
[1752104676879,0.95453713,111440.0,111430.0,0.65158985]
[1752104678590,0.95453713,111440.0,111430.0,0.58081985]
[1752104678782,1.25933434,111440.0,111430.0,0.58081985]
[1752104678983,1.25933434,111440.0,111430.0,0.59608985]
[1752104679291,1.62013434,111440.0,111430.0,0.59608985]
[1752104679693,1.62013434,111440.0,111430.0,0.59611235]
[1752104680807,1.85933155,111440.0,111430.0,0.32631514]
[1752104680989,1.88284155,111440.0,111430.0,0.56551235]
[1752104681387,1.64364434,111440.0,111430.0,0.56551235]
[1752104682289,1.28284434,111440.0,111430.0,0.56551235]
[1752104682494,1.25933434,111440.0,111430.0,0.56551235]
[1752104682694,1.25933434,111440.0,111430.0,0.59881235]
[1752104682993,1.01993713,111440.0,111430.0,0.62330235]
[1752104683295,1.04682973,111440.0,111430.0,0.65440235]
[1752104685399,1.04682973,111440.0,111430.0,0.64047494]
[1752104685588,1.04682973,111440.0,111430.0,0.6544997]
[1752104686699,1.04682973,111440.0,111430.0,0.6300097]
[1752104687296,1.28602694,111440.0,111430.0,0.6300097]
[1752104687497,1.28602694,111440.0,111430.0,0.5989097]
[1752104687797,1.07033973,111440.0,111430.0,0.5989097]
[1752104687998,1.30953694,111440.0,111430.0,0.5989097]
[1752104688402,1.30953694,111440.0,111430.0,0.59889581]
[1752104688785,1.30949694,111440.0,111430.0,0.59889581]
[1752104688990,1.07029973,111440.0,111430.0,0.59889581]
[1752104689291,1.28582155,111440.0,111430.0,0.59889581]
[1752104689598,1.17824969,111440.0,111430.0,0.59889581]
[1752104690594,1.25898454,111440.0,111430.0,0.59889581]
[1752104691499,1.01978733,111440.0,111430.0,0.59889581]
[1752104691701,1.25898454,111440.0,111430.0,0.59889581]
[1752104692101,1.17824969,111440.0,111430.0,0.59889581]
[1752104692700,1.25898454,111440.0,111430.0,0.59889581]
[1752104693301,1.17824969,111440.0,111430.0,0.59889581]
[1752104693800,1.61978454,111440.0,111430.0,0.59889581]
[1752104696795,1.53904969,111440.0,111430.0,0.59889581]
[1752104696994,1.17824969,111440.0,111430.0,0.59889581]
[1752104697404,1.29985248,111440.0,111430.0,0.59889581]
[1752104697602,1.17824969,111440.0,111430.0,0.59889581]
[1752104698103,1.28582155,111440.0,111430.0,0.59889581]
[1752104698504,1.64662155,111440.0,111430.0,0.59889581]
[1752104701103,1.28582155,111440.0,111430.0,0.59889581]
[1752104701507,1.17824969,111440.0,111430.0,0.59889581]
[1752104702104,1.17824969,111440.0,111430.0,0.63189581]
[1752104702304,0.93905248,111440.0,111430.0,0.63189581]
[1752104702506,1.25902027,111440.0,111430.0,0.63189581]
[1752104702806,1.25902058,111440.0,111430.0,0.63189581]
[1752104703006,1.61982058,111440.0,111430.0,0.63189581]
[1752104704313,1.25902058,111440.0,111430.0,0.63189581]
[1752104705512,1.22652058,111440.0,111430.0,0.63189581]
[1752104706314,1.14574969,111440.0,111430.0,0.63189581]
[1752104707416,1.25332155,111440.0,111430.0,0.63189581]
[1752104708310,1.25332155,111440.0,111430.0,0.63189241]
[1752104708910,1.22022155,111440.0,111430.0,0.63189241]
[1752104709110,0.98102434,111440.0,111430.0,0.65520241]
[1752104710910,0.98102434,111440.0,111430.0,0.40512161]
[1752104711214,0.98102434,111440.0,111430.0,0.65519254]
[1752104711414,0.87345248,111440.0,111430.0,0.65519254]
[1752104711818,0.98102434,111440.0,111430.0,0.65519254]
[1752104712210,0.87345248,111440.0,111430.0,0.65519254]
[1752104712410,0.98102434,111440.0,111430.0,0.65519254]
[1752104713328,0.87345248,111440.0,111430.0,0.65519254]
[1752104714018,0.98102434,111440.0,111430.0,0.65519254]
[1752104715518,0.98102434,111440.0,111430.0,0.65519251]
[1752104716820,0.98102434,111440.0,111430.0,0.65519596]
[1752104719519,0.98102434,111440.0,111430.0,0.41599875]
[1752104719707,0.98102434,111440.0,111430.0,0.65519596]
[1752104722718,1.34182434,111440.0,111430.0,0.65519596]
[1752104722919,0.98102434,111440.0,111430.0,0.65519596]
[1752104723119,0.87345248,111440.0,111430.0,0.65519596]
[1752104725623,0.87313248,111440.0,111430.0,0.65518664]
[1752104726324,0.98070434,111440.0,111430.0,0.65518664]
[1752104727627,0.98070434,111440.0,111430.0,1.01598664]
[1752104727829,0.69368648,111440.0,111430.0,1.25518385]
[1752104728026,0.87309248,111440.0,111430.0,1.25518385]
[1752104728227,0.87309248,111440.0,111430.0,1.01598664]
[1752104728730,0.95385696,111440.0,111430.0,1.01598664]
[1752104728931,0.87309248,111440.0,111430.0,1.01598664]
[1752104729527,0.95385689,111440.0,111430.0,1.01598664]
[1752104729930,0.87309248,111440.0,111430.0,1.01598664]
[1752104730129,0.95385627,111440.0,111430.0,1.01598664]
[1752104733333,0.95385627,111440.0,111430.0,1.25518385]
[1752104733533,0.77445027,111440.0,111430.0,1.25518385]
[1752104733831,0.95385637,111440.0,111430.0,1.25518385]
[1752104734031,0.77445027,111440.0,111430.0,1.25518385]
[1752104734435,0.77445027,111440.0,111430.0,1.01595155]
[1752104734628,0.14368027,111440.0,111430.0,1.25514876]
[1752104735230,0.06291648,111440.0,111430.0,1.25514876]
[1752104735627,0.06291648,111440.0,111430.0,1.86978876]
[1752104738846,0.06291648,111440.0,111430.0,1.86965902]
[1752104739451,0.01889913,111440.0,111430.0,1.86965902]
[1752104739942,0.0631217,111440.0,111430.0,1.86965902]
[1752104742041,0.0631217,111440.0,111430.0,2.23045902]
[1752104742842,9e-08,111440.0,111430.0,2.94965623]
[1752104743039,9e-08,111440.0,111430.0,2.91965623]
[1752104743235,9e-08,111440.0,111430.0,2.91965667]
[1752104743436,9e-08,111440.0,111430.0,2.90895158]
[1752104743636,9e-08,111440.0,111430.0,2.91968197]
[1752104743842,9e-08,111440.0,111430.0,2.99916197]
[1752104744042,9e-08,111440.0,111430.0,3.33916197]
[1752104744242,9e-08,111440.0,111430.0,3.37916197]
[1752104745050,0.08076379,111460.0,111450.0,0.17939]
[1752104745350,0.08076379,111460.0,111450.0,1.69095398]
[1752104745549,0.08076379,111460.0,111450.0,1.77888398]
[1752104746050,0.08076379,111460.0,111450.0,1.77888192]
[1752104746352,0.08076379,111460.0,111450.0,1.84980715]
[1752104746542,0.26012169,111470.0,111460.0,0.1793739]
[1752104746845,0.09738379,111470.0,111460.0,0.78656973]
[1752104747242,0.09738379,111470.0,111460.0,0.79540035]
[1752104747643,0.08076379,111470.0,111460.0,0.79540035]
[1752104747846,0.27674159,111470.0,111460.0,0.78656973]
[1752104748257,0.27874159,111470.0,111460.0,0.78656973]
[1752104748955,0.002,111470.0,111460.0,1.1473693]
[1752104749248,0.002,111470.0,111460.0,1.83583612]
[1752104749852,0.002,111470.0,111460.0,1.74583612]
[1752104750647,0.002,111470.0,111460.0,1.83583612]
[1752104750944,0.002,111470.0,111460.0,1.47583612]
[1752104751149,0.002,111470.0,111460.0,1.78492747]
[1752104751853,0.002,111470.0,111460.0,1.48492747]
[1752104752253,0.002,111470.0,111460.0,1.38492747]
[1752104752443,0.002,111470.0,111460.0,1.72492747]
[1752104753954,0.002,111470.0,111460.0,1.38492747]
[1752104754346,0.002,111470.0,111460.0,1.76492747]
[1752104755155,0.002,111470.0,111460.0,1.38492747]
[1752104755356,0.002,111470.0,111460.0,1.39492747]
[1752104755657,0.002,111470.0,111460.0,1.70492747]
[1752104756955,0.002,111470.0,111460.0,1.71492747]
[1752104757156,0.04634093,111470.0,111460.0,1.71492747]
[1752104757759,0.04634093,111470.0,111460.0,1.4649254]
[1752104757957,0.04634093,111470.0,111460.0,1.3849254]
[1752104758158,0.04634093,111470.0,111460.0,1.7149254]
[1752104760261,0.04634093,111470.0,111460.0,1.6949254]
[1752104761263,0.04634093,111470.0,111460.0,1.7049254]
[1752104764961,0.04634093,111470.0,111460.0,1.7149254]
[1752104765552,0.02088093,111470.0,111460.0,1.8049254]
[1752104765757,0.02088093,111470.0,111460.0,1.8249254]
[1752104766564,0.02088093,111470.0,111460.0,1.8649254]
[1752104766865,0.02088093,111470.0,111460.0,1.3949254]
[1752104767057,0.02088093,111470.0,111460.0,1.7349254]
[1752104768764,0.05199066,111480.0,111470.0,0.1793578]
[1752104768959,0.06861066,111480.0,111470.0,2.32517539]
[1752104769263,0.06861066,111480.0,111470.0,2.34874539]
[1752104769866,0.07061066,111480.0,111470.0,2.34874539]
[1752104770061,0.07161066,111480.0,111470.0,2.34874539]
[1752104771665,0.07161066,111480.0,111470.0,2.33283539]
[1752104771866,0.10321066,111480.0,111470.0,2.30926539]
[1752104772265,0.10321066,111480.0,111470.0,2.33283539]
[1752104772858,0.18397445,111480.0,111470.0,2.33283539]
[1752104774459,0.18397445,111480.0,111470.0,2.36363539]
[1752104774759,0.13575445,111480.0,111470.0,2.36363539]
[1752104775666,0.10265445,111480.0,111470.0,2.36363539]
[1752104777771,0.14683337,111480.0,111470.0,2.36363539]
[1752104778066,0.16309337,111480.0,111470.0,2.36363539]
[1752104778266,0.19519337,111480.0,111470.0,2.36363539]
[1752104778657,0.19519337,111480.0,111470.0,1.13551539]
[1752104780268,0.19519337,111480.0,111470.0,1.13551529]
[1752104783171,0.19519337,111480.0,111470.0,1.13551525]
[1752104784769,0.17893337,111480.0,111470.0,1.13551525]
[1752104786070,0.09816958,111480.0,111470.0,1.13551525]
[1752104786272,0.17893337,111480.0,111470.0,1.13551525]
[1752104787667,0.14683337,111480.0,111470.0,1.13551525]
[1752104788672,0.14683337,111480.0,111470.0,1.12149687]
[1752104790669,0.32617507,111480.0,111470.0,1.12149687]
[1752104790870,0.14683337,111480.0,111470.0,1.12149687]
[1752104792371,0.06606958,111480.0,111470.0,1.12149687]
[1752104793277,0.10265445,111480.0,111470.0,1.12149687]
[1752104793771,0.14683337,111480.0,111470.0,1.12149687]
[1752104795071,0.32617507,111480.0,111470.0,1.13149687]
[1752104795276,0.14683337,111480.0,111470.0,1.13149687]
[1752104799480,0.14683337,111480.0,111470.0,1.12149687]
[1752104799677,0.14683337,111480.0,111470.0,1.13149687]
[1752104801470,0.12794271,111480.0,111470.0,1.13149687]
[1752104802182,0.04717892,111480.0,111470.0,1.13149687]
[1752104805581,0.22652062,111480.0,111470.0,1.13149687]
[1752104805784,0.04717892,111480.0,111470.0,1.13149687]
[1752104807284,0.08376379,111480.0,111470.0,1.13149687]
[1752104807676,0.12794271,111480.0,111470.0,1.13149687]
[1752104808680,0.30728441,111480.0,111470.0,1.13149687]
[1752104810984,0.30728441,111480.0,111470.0,1.12149687]
[1752104812088,0.92315162,111480.0,111470.0,0.25873245]
[1752104812287,0.2690427,111470.0,111460.0,0.1793634]
[1752104812487,0.1793739,111460.0,111450.0,0.28608299]
[1752104812686,0.86155382,111460.0,111450.0,0.69399411]
[1752104812983,0.3831594,111460.0,111450.0,0.71893183]
[1752104813282,0.39218777,111460.0,111450.0,0.70401755]
[1752104813687,0.39218777,111460.0,111450.0,0.72898755]
[1752104813980,0.39218777,111460.0,111450.0,0.70501755]
[1752104814186,0.39218777,111460.0,111450.0,0.66098755]
[1752104815382,0.46421645,111460.0,111450.0,0.66098755]
[1752104815581,0.44834645,111460.0,111450.0,0.60023183]
[1752104815782,0.46421645,111460.0,111450.0,0.63993183]
[1752104815987,0.46421645,111460.0,111450.0,0.61396183]
[1752104816282,0.46421645,111460.0,111450.0,0.63893183]
[1752104816482,0.46421645,111460.0,111450.0,0.61396183]
[1752104816678,0.82501645,111460.0,111450.0,0.3747969]
[1752104816885,1.08738138,111460.0,111450.0,0.1793755]
[1752104817288,1.0066448,111460.0,111450.0,0.1793755]
[1752104817690,0.17939,111450.0,111440.0,0.3139396]
[1752104817986,1.61937499,111450.0,111440.0,0.3139396]
[1752104818186,1.61937499,111450.0,111440.0,0.2690893]
[1752104818492,1.61937499,111450.0,111440.0,0.2242391]
[1752104819087,1.61937499,111450.0,111440.0,0.2252391]
[1752104819690,1.61937499,111450.0,111440.0,0.2262391]
[1752104820294,1.38021006,111450.0,111440.0,0.2419691]
[1752104820496,1.35701006,111450.0,111440.0,0.46540403]
[1752104820683,1.35701006,111450.0,111440.0,0.48113403]
[1752104821191,1.35701006,111450.0,111440.0,0.49131214]
[1752104821494,1.27645892,111450.0,111440.0,0.51628214]
[1752104821793,1.35701006,111450.0,111440.0,0.54848214]
[1752104821987,0.91565892,111450.0,111440.0,0.54848214]
[1752104822493,1.27645892,111450.0,111440.0,0.54848214]
[1752104822689,1.27645892,111450.0,111440.0,0.20729811]
[1752104822893,0.89978892,111450.0,111440.0,0.50363304]
[1752104823094,1.27645892,111450.0,111440.0,0.50363304]
[1752104823290,1.27645892,111450.0,111440.0,0.46293304]
[1752104823503,1.27649892,111450.0,111440.0,0.44646304]
[1752104823791,0.30213892,111450.0,111440.0,0.44646304]
[1752104823988,0.22356892,111450.0,111440.0,0.48866304]
[1752104824190,0.83716892,111450.0,111440.0,0.88096304]
[1752104824792,0.83716892,111450.0,111440.0,0.52016304]
[1752104825689,0.85303892,111450.0,111440.0,0.51016304]
[1752104826495,0.85303892,111450.0,111440.0,0.53513304]
[1752104826691,0.83716892,111450.0,111440.0,0.53513304]
[1752104827193,0.85303892,111450.0,111440.0,0.53513304]
[1752104827588,1.21383892,111450.0,111440.0,0.53513304]
[1752104827793,1.19796892,111450.0,111440.0,0.53513304]
[1752104827998,0.83716892,111450.0,111440.0,0.53513304]
[1752104828398,0.85244892,111450.0,111440.0,0.53513304]
[1752104829098,1.92753278,111450.0,111440.0,0.002]
[1752104829299,1.79941899,111450.0,111440.0,0.002]
[1752104829993,1.56025406,111450.0,111440.0,0.002]
[1752104830201,1.79941899,111450.0,111440.0,0.1814061]
[1752104831000,1.71886785,111450.0,111440.0,0.1814061]
[1752104831993,1.53940385,111450.0,111440.0,0.1814061]
[1752104832502,1.64697571,111450.0,111440.0,0.1814061]
[1752104833001,1.53940385,111450.0,111440.0,0.1814061]
[1752104833201,1.64697571,111450.0,111440.0,0.1814061]
[1752104834699,1.53940385,111450.0,111440.0,0.1814061]
[1752104835002,1.35589914,111450.0,111440.0,0.1976861]
[1752104835302,1.35589914,111450.0,111440.0,0.46795103]
[1752104836203,1.27554892,111450.0,111440.0,0.2287861]
[1752104836504,1.35592429,111450.0,111440.0,0.23741656]
[1752104836706,1.38061429,111450.0,111440.0,0.23741656]
[1752104837706,0.76701429,111450.0,111440.0,0.23741656]
[1752104837907,1.38065429,111450.0,111440.0,0.23741656]
[1752104838310,1.30027892,111450.0,111440.0,0.23741656]
[1752104839007,0.68663892,111450.0,111440.0,0.23741656]
[1752104839207,1.30027892,111450.0,111440.0,0.23741656]
[1752104841409,1.40785078,111450.0,111440.0,0.23741656]
[1752104841910,1.40785078,111450.0,111440.0,0.20631656]
[1752104842210,1.53944385,111450.0,111440.0,0.20631656]
[1752104843006,1.67374958,111450.0,111440.0,0.20631656]
[1752104843404,1.06010958,111450.0,111440.0,0.20631656]